[Event "Early-Titled-Tuesday-Blitz-October-10-2023"]
[Site "Chess.com"]
[Date "2023.10.10"]
[Round "1"]
[White "InitiatingASC"]
[Black "JuniorJumper"]
[Result "0-1"]
[WhiteElo "2334"]
[BlackElo "2632"]
[TimeControl "180+1"]
[EndTime "8:04:39 PDT"]
[Termination "JuniorJumper won by resignation"]

1. d4 {[%clk 0:02:56]} 1... d5 {[%clk 0:02:59.7]} 2. c4 {[%clk 0:02:55.7]} 2...
e6 {[%clk 0:02:59.7]} 3. Nc3 {[%clk 0:02:55.3]} 3... c6 {[%clk 0:03:00]} 4. Nf3
{[%clk 0:02:52.4]} 4... dxc4 {[%clk 0:02:59.5]} 5. a4 {[%clk 0:02:51.6]} 5...
Bb4 {[%clk 0:02:59]} 6. e3 {[%clk 0:02:50.4]} 6... b5 {[%clk 0:02:59.3]} 7. Bd2
{[%clk 0:02:39.9]} 7... a5 {[%clk 0:02:59]} 8. axb5 {[%clk 0:02:19.1]} 8... Bxc3
{[%clk 0:02:56]} 9. Bxc3 {[%clk 0:02:19.7]} 9... cxb5 {[%clk 0:02:56.5]} 10. b3
{[%clk 0:02:20.4]} 10... Bb7 {[%clk 0:02:56.5]} 11. bxc4 {[%clk 0:02:19]} 11...
b4 {[%clk 0:02:57.2]} 12. Bb2 {[%clk 0:02:19.4]} 12... Nf6 {[%clk 0:02:57.6]}
13. Bd3 {[%clk 0:02:15.3]} 13... Nbd7 {[%clk 0:02:51.5]} 14. O-O {[%clk
0:02:13.9]} 14... O-O {[%clk 0:02:51.3]} 15. Qc2 {[%clk 0:01:41.1]} 15... Qc7
{[%clk 0:02:48.9]} 16. e4 {[%clk 0:01:27.5]} 16... e5 {[%clk 0:02:33.8]} 17.
Nxe5 {[%clk 0:01:00.8]} 17... Nxe5 {[%clk 0:02:32.7]} 18. dxe5 {[%clk
0:01:00.8]} 18... Ng4 {[%clk 0:02:29.1]} 19. Rfc1 {[%clk 0:00:38.1]} 19... Nxe5
{[%clk 0:02:22.3]} 20. Bf1 {[%clk 0:00:37.9]} 20... Rfe8 {[%clk 0:02:13.3]} 21.
c5 {[%clk 0:00:30.8]} 21... Ng4 {[%clk 0:02:13.4]} 22. g3 {[%clk 0:00:23.3]}
22... Bxe4 {[%clk 0:02:12.9]} 23. Qd1 {[%clk 0:00:22]} 23... Ne5 {[%clk
0:02:09.5]} 24. Qd4 {[%clk 0:00:21.6]} 24... Nf3+ {[%clk 0:02:09.3]} 0-1

[Event "Early-Titled-Tuesday-Blitz-October-10-2023"]
[Site "Chess.com"]
[Date "2023.10.10"]
[Round "1"]
[White "amylazy"]
[Black "djano"]
[Result "1-0"]
[WhiteElo "2404"]
[BlackElo "2673"]
[TimeControl "180+1"]
[EndTime "8:04:41 PDT"]
[Termination "amylazy won by resignation"]

1. d4 {[%clk 0:02:43.5]} 1... d5 {[%clk 0:02:59.3]} 2. c4 {[%clk 0:02:41.2]}
2... e6 {[%clk 0:02:59.3]} 3. Nf3 {[%clk 0:02:35.8]} 3... c5 {[%clk 0:02:59.2]}
4. cxd5 {[%clk 0:02:35.3]} 4... exd5 {[%clk 0:03:00.1]} 5. Nc3 {[%clk
0:02:34.3]} 5... Nc6 {[%clk 0:03:00]} 6. e3 {[%clk 0:02:11.5]} 6... Nf6 {[%clk
0:02:58.9]} 7. Be2 {[%clk 0:02:10.5]} 7... Bd6 {[%clk 0:02:57.3]} 8. O-O {[%clk
0:02:10.1]} 8... O-O {[%clk 0:02:57.5]} 9. dxc5 {[%clk 0:02:10.5]} 9... Bxc5
{[%clk 0:02:58.4]} 10. b3 {[%clk 0:02:10.8]} 10... Be6 {[%clk 0:02:49.3]} 11.
Bb2 {[%clk 0:02:03.4]} 11... Qe7 {[%clk 0:02:49.4]} 12. Nb5 {[%clk 0:01:57.5]}
12... Rfd8 {[%clk 0:02:44.7]} 13. Rc1 {[%clk 0:01:56]} 13... Ne4 {[%clk
0:02:42.6]} 14. Nfd4 {[%clk 0:01:51.2]} 14... a6 {[%clk 0:02:34.4]} 15. Nxc6
{[%clk 0:01:51.1]} 15... bxc6 {[%clk 0:02:33.7]} 16. Nd4 {[%clk 0:01:52]} 16...
Bd7 {[%clk 0:02:28.7]} 17. Bg4 {[%clk 0:01:45.4]} 17... Be8 {[%clk 0:02:07.3]}
18. Nf5 {[%clk 0:01:44.2]} 18... Qg5 {[%clk 0:02:04.1]} 19. h4 {[%clk
0:01:40.4]} 19... Qg6 {[%clk 0:01:49]} 20. Rxc5 {[%clk 0:01:40.1]} 20... Ra7
{[%clk 0:01:32.7]} 21. h5 {[%clk 0:01:29.6]} 21... Qg5 {[%clk 0:01:26.2]} 22. f4
{[%clk 0:01:29.7]} 22... Qxf5 {[%clk 0:01:08.3]} 23. Bxf5 {[%clk 0:01:29]} 23...
Nxc5 {[%clk 0:01:08.8]} 24. Qd4 {[%clk 0:01:28.2]} 24... Ne6 {[%clk 0:01:08.4]}
25. Bxe6 {[%clk 0:01:24.5]} 25... fxe6 {[%clk 0:01:06.7]} 26. Qxa7 {[%clk
0:01:24.3]} 26... Rd7 {[%clk 0:01:07.4]} 27. Qxa6 {[%clk 0:01:23.5]} 1-0

[Event "Early-Titled-Tuesday-Blitz-October-10-2023"]
[Site "Chess.com"]
[Date "2023.10.10"]
[Round "1"]
[White "OparinGrigoriy"]
[Black "Sergey85Rodchenkov"]
[Result "1-0"]
[WhiteElo "2993"]
[BlackElo "2511"]
[TimeControl "180+1"]
[EndTime "8:04:53 PDT"]
[Termination "OparinGrigoriy won by resignation"]

1. c4 {[%clk 0:03:00.9]} 1... e5 {[%clk 0:02:59.5]} 2. Nc3 {[%clk 0:03:01.4]}
2... Nf6 {[%clk 0:03:00]} 3. Nf3 {[%clk 0:03:02.1]} 3... Nc6 {[%clk 0:02:59.8]}
4. g3 {[%clk 0:03:02.7]} 4... Bb4 {[%clk 0:02:57.5]} 5. Bg2 {[%clk 0:03:02.7]}
5... O-O {[%clk 0:02:57.6]} 6. Nd5 {[%clk 0:03:03]} 6... Re8 {[%clk 0:02:51.3]}
7. O-O {[%clk 0:03:01.9]} 7... Bf8 {[%clk 0:02:50.6]} 8. d3 {[%clk 0:02:58.7]}
8... h6 {[%clk 0:02:48.3]} 9. e4 {[%clk 0:02:54.3]} 9... d6 {[%clk 0:02:46.9]}
10. h3 {[%clk 0:02:54.9]} 10... g6 {[%clk 0:02:36.2]} 11. Be3 {[%clk 0:02:55.4]}
11... Bg7 {[%clk 0:02:36.1]} 12. Qd2 {[%clk 0:02:55.4]} 12... Kh7 {[%clk
0:02:34.8]} 13. Nh2 {[%clk 0:02:51.6]} 13... Nd4 {[%clk 0:02:27.5]} 14. f4
{[%clk 0:02:49.8]} 14... Nh5 {[%clk 0:01:55]} 15. fxe5 {[%clk 0:02:41.2]} 15...
dxe5 {[%clk 0:01:44.9]} 16. Rxf7 {[%clk 0:02:41.5]} 16... Be6 {[%clk 0:01:43.8]}
17. Rxc7 {[%clk 0:02:22.1]} 17... Bxd5 {[%clk 0:01:19.2]} 18. Rxg7+ {[%clk
0:02:22.2]} 18... Nxg7 {[%clk 0:01:20.1]} 19. cxd5 {[%clk 0:02:16.5]} 19... h5
{[%clk 0:00:47.3]} 20. Bxd4 {[%clk 0:02:06.8]} 20... exd4 {[%clk 0:00:48.2]} 21.
Nf3 {[%clk 0:02:07.4]} 21... Kh8 {[%clk 0:00:37.1]} 22. Re1 {[%clk 0:02:02.7]}
22... Qd6 {[%clk 0:00:33.7]} 23. Qh6+ {[%clk 0:02:02.2]} 23... Kg8 {[%clk
0:00:32.9]} 24. Ng5 {[%clk 0:02:02.2]} 1-0

[Event "Early-Titled-Tuesday-Blitz-October-10-2023"]
[Site "Chess.com"]
[Date "2023.10.10"]
[Round "1"]
[White "Zampronha1971"]
[Black "SharapovEvgeny"]
[Result "0-1"]
[WhiteElo "2301"]
[BlackElo "2610"]
[TimeControl "180+1"]
[EndTime "8:04:57 PDT"]
[Termination "SharapovEvgeny won by resignation"]

1. e4 {[%clk 0:02:59.2]} 1... c5 {[%clk 0:02:59.7]} 2. Nf3 {[%clk 0:02:59.2]}
2... d6 {[%clk 0:02:59.7]} 3. d4 {[%clk 0:02:59.7]} 3... cxd4 {[%clk 0:02:59.7]}
4. Nxd4 {[%clk 0:03:00.6]} 4... Nf6 {[%clk 0:02:59.6]} 5. Nc3 {[%clk 0:03:00.9]}
5... Nc6 {[%clk 0:03:00]} 6. Bg5 {[%clk 0:02:58]} 6... e6 {[%clk 0:02:59.9]} 7.
Qd2 {[%clk 0:02:57.8]} 7... Be7 {[%clk 0:03:00]} 8. O-O-O {[%clk 0:02:55.4]}
8... O-O {[%clk 0:03:00]} 9. f4 {[%clk 0:02:54.6]} 9... Nxd4 {[%clk 0:02:59.6]}
10. Qxd4 {[%clk 0:02:53.7]} 10... Qa5 {[%clk 0:03:00.2]} 11. e5 {[%clk
0:02:40.1]} 11... dxe5 {[%clk 0:02:59.1]} 12. Qxe5 {[%clk 0:02:39.8]} 12... Qb6
{[%clk 0:02:55.7]} 13. Qe1 {[%clk 0:01:28.8]} 13... Rd8 {[%clk 0:02:47.5]} 14.
Rxd8+ {[%clk 0:01:23.7]} 14... Qxd8 {[%clk 0:02:47.1]} 15. Bd3 {[%clk
0:01:22.8]} 15... Bd7 {[%clk 0:02:45.6]} 16. Kb1 {[%clk 0:01:11.8]} 16... Bc6
{[%clk 0:02:45.5]} 17. Qe2 {[%clk 0:01:05.5]} 17... Nd5 {[%clk 0:02:44.6]} 18.
Nxd5 {[%clk 0:01:01.9]} 18... Bxg5 {[%clk 0:02:36.7]} 19. fxg5 {[%clk
0:00:55.3]} 19... Qxd5 {[%clk 0:02:36]} 20. h4 {[%clk 0:00:33.7]} 20... Qxg2
{[%clk 0:02:32]} 21. Qxg2 {[%clk 0:00:34.6]} 21... Bxg2 {[%clk 0:02:31.6]} 22.
Rd1 {[%clk 0:00:34.2]} 22... Bf3 {[%clk 0:02:25.5]} 23. Rd2 {[%clk 0:00:33.8]}
23... Bc6 {[%clk 0:02:25.2]} 24. Be2 {[%clk 0:00:32.5]} 24... Kf8 {[%clk
0:02:24.5]} 25. Kc1 {[%clk 0:00:32]} 25... Ke7 {[%clk 0:02:24.4]} 26. b4 {[%clk
0:00:32.4]} 26... Rd8 {[%clk 0:02:23.8]} 27. b5 {[%clk 0:00:32.6]} 27... Rxd2
{[%clk 0:02:23.2]} 28. Kxd2 {[%clk 0:00:33.5]} 28... Bg2 {[%clk 0:02:19.8]} 29.
Ke3 {[%clk 0:00:26.5]} 29... Kd6 {[%clk 0:02:18.2]} 30. Bd3 {[%clk 0:00:19.3]}
30... h6 {[%clk 0:02:17.4]} 31. Kd4 {[%clk 0:00:18.7]} 31... b6 {[%clk
0:02:16.7]} 32. gxh6 {[%clk 0:00:17.8]} 32... gxh6 {[%clk 0:02:16.5]} 33. c4
{[%clk 0:00:15.8]} 33... f5 {[%clk 0:02:16.3]} 0-1

[Event "Early-Titled-Tuesday-Blitz-October-10-2023"]
[Site "Chess.com"]
[Date "2023.10.10"]
[Round "1"]
[White "lefonghua"]
[Black "salomez"]
[Result "1-0"]
[WhiteElo "2606"]
[BlackElo "2294"]
[TimeControl "180+1"]
[EndTime "8:04:58 PDT"]
[Termination "lefonghua won by resignation"]

1. d4 {[%clk 0:03:00.9]} 1... Nf6 {[%clk 0:02:59.5]} 2. c4 {[%clk 0:03:01.2]}
2... g6 {[%clk 0:03:00.4]} 3. Nc3 {[%clk 0:03:01.5]} 3... Bg7 {[%clk 0:03:00.8]}
4. e4 {[%clk 0:03:01.9]} 4... d6 {[%clk 0:02:59.9]} 5. f4 {[%clk 0:03:02.3]}
5... O-O {[%clk 0:02:56.9]} 6. Nf3 {[%clk 0:03:00.7]} 6... c5 {[%clk 0:02:56.8]}
7. d5 {[%clk 0:03:00.9]} 7... e6 {[%clk 0:02:57]} 8. Be2 {[%clk 0:03:01.4]} 8...
exd5 {[%clk 0:02:57]} 9. cxd5 {[%clk 0:03:02.3]} 9... Re8 {[%clk 0:02:54.5]} 10.
Nd2 {[%clk 0:03:02.3]} 10... Bd7 {[%clk 0:02:14.7]} 11. a4 {[%clk 0:02:52.1]}
11... Na6 {[%clk 0:02:14.2]} 12. O-O {[%clk 0:02:45.7]} 12... Nc7 {[%clk
0:02:12.6]} 13. Bf3 {[%clk 0:02:41.2]} 13... Rb8 {[%clk 0:02:11.7]} 14. Nc4
{[%clk 0:02:39.2]} 14... Qe7 {[%clk 0:02:05.5]} 15. e5 {[%clk 0:02:37.4]} 15...
Nfxd5 {[%clk 0:01:43.6]} 16. Nxd5 {[%clk 0:02:25.6]} 16... Nxd5 {[%clk
0:01:42.1]} 17. Bxd5 {[%clk 0:02:26.3]} 17... dxe5 {[%clk 0:01:40.2]} 18. fxe5
{[%clk 0:02:22.6]} 18... Bf5 {[%clk 0:01:36.9]} 19. Nd6 {[%clk 0:02:15.9]} 19...
Bxe5 {[%clk 0:01:30.1]} 20. Bxf7+ {[%clk 0:01:59.7]} 20... Kh8 {[%clk 0:01:28]}
21. Nxf5 {[%clk 0:01:48.7]} 21... Qxf7 {[%clk 0:01:23.1]} 22. Nd6 {[%clk
0:01:40.1]} 22... Qc7 {[%clk 0:00:51.3]} 23. Nxe8 {[%clk 0:01:33.9]} 23... Bxh2+
{[%clk 0:00:49.9]} 24. Kh1 {[%clk 0:01:33.6]} 24... Rxe8 {[%clk 0:00:49.2]} 25.
Bd2 {[%clk 0:01:26.2]} 1-0

[Event "Early-Titled-Tuesday-Blitz-October-10-2023"]
[Site "Chess.com"]
[Date "2023.10.10"]
[Round "1"]
[White "Alexander_Donchenko"]
[Black "WindWhistler11"]
[Result "1-0"]
[WhiteElo "2828"]
[BlackElo "2462"]
[TimeControl "180+1"]
[EndTime "8:05:11 PDT"]
[Termination "Alexander_Donchenko won by resignation"]

1. d4 {[%clk 0:03:00.9]} 1... Nf6 {[%clk 0:02:59.1]} 2. c4 {[%clk 0:03:00.4]}
2... e6 {[%clk 0:02:59.3]} 3. Nc3 {[%clk 0:03:00.7]} 3... c5 {[%clk 0:02:57.8]}
4. d5 {[%clk 0:02:59.9]} 4... exd5 {[%clk 0:02:58.6]} 5. cxd5 {[%clk 0:03:00]}
5... Bd6 {[%clk 0:02:59.4]} 6. Nf3 {[%clk 0:02:58.3]} 6... O-O {[%clk 0:03:00]}
7. g3 {[%clk 0:02:57]} 7... Re8 {[%clk 0:03:00.4]} 8. Bg2 {[%clk 0:02:56.9]}
8... Bf8 {[%clk 0:02:56.9]} 9. O-O {[%clk 0:02:55.7]} 9... d6 {[%clk 0:02:56.3]}
10. h3 {[%clk 0:02:55.6]} 10... a6 {[%clk 0:02:49.7]} 11. a4 {[%clk 0:02:55.2]}
11... Nbd7 {[%clk 0:02:39.4]} 12. Nd2 {[%clk 0:02:55.1]} 12... Rb8 {[%clk
0:02:37.8]} 13. a5 {[%clk 0:02:53.4]} 13... b5 {[%clk 0:02:24.8]} 14. axb6
{[%clk 0:02:53.4]} 14... Nxb6 {[%clk 0:02:25.2]} 15. Qc2 {[%clk 0:02:51.1]}
15... Na8 {[%clk 0:02:15]} 16. Nc4 {[%clk 0:02:46.9]} 16... h6 {[%clk
0:02:02.5]} 17. Na5 {[%clk 0:02:43.3]} 17... Qc7 {[%clk 0:01:56.7]} 18. Rd1
{[%clk 0:02:42]} 18... g6 {[%clk 0:01:53]} 19. Nc6 {[%clk 0:02:39.8]} 19... Rb7
{[%clk 0:01:47.6]} 20. Rxa6 {[%clk 0:02:36]} 20... Rxb2 {[%clk 0:01:46.5]} 21.
Bxb2 {[%clk 0:02:28]} 21... Bxa6 {[%clk 0:01:46.8]} 22. Ra1 {[%clk 0:02:27.8]}
22... Bc4 {[%clk 0:01:38.8]} 23. e4 {[%clk 0:02:22.7]} 23... Nb6 {[%clk
0:01:34.3]} 24. Ra7 {[%clk 0:02:20.9]} 24... Qc8 {[%clk 0:01:29.6]} 25. Na4
{[%clk 0:02:18.5]} 25... Nxa4 {[%clk 0:01:23.8]} 26. Qxa4 {[%clk 0:02:17.9]}
26... Bd3 {[%clk 0:01:23.5]} 27. Bxf6 {[%clk 0:02:16.5]} 27... c4 {[%clk
0:01:11]} 28. Bc3 {[%clk 0:02:13.7]} 28... Bxe4 {[%clk 0:01:07.5]} 29. Bxe4
{[%clk 0:02:11.8]} 29... Rxe4 {[%clk 0:01:06.3]} 30. Kg2 {[%clk 0:02:04.4]}
30... Qf5 {[%clk 0:01:02.5]} 31. Qd1 {[%clk 0:01:34.9]} 31... h5 {[%clk
0:00:47.6]} 32. Qf3 {[%clk 0:01:33.9]} 1-0

[Event "Early-Titled-Tuesday-Blitz-October-10-2023"]
[Site "Chess.com"]
[Date "2023.10.10"]
[Round "1"]
[White "forevery0ung"]
[Black "Road2GM3000"]
[Result "1-0"]
[WhiteElo "2681"]
[BlackElo "2380"]
[TimeControl "180+1"]
[EndTime "8:05:11 PDT"]
[Termination "forevery0ung won by checkmate"]

1. c4 {[%clk 0:03:00.9]} 1... c6 {[%clk 0:02:58]} 2. Nf3 {[%clk 0:02:59.8]} 2...
d5 {[%clk 0:02:58.4]} 3. g3 {[%clk 0:02:59.2]} 3... Nf6 {[%clk 0:02:58.6]} 4.
Bg2 {[%clk 0:02:59.4]} 4... Bg4 {[%clk 0:02:58.9]} 5. O-O {[%clk 0:02:59.2]}
5... e6 {[%clk 0:02:59.4]} 6. d3 {[%clk 0:02:55.9]} 6... Nbd7 {[%clk 0:02:59]}
7. cxd5 {[%clk 0:02:56.1]} 7... cxd5 {[%clk 0:02:58.2]} 8. h3 {[%clk 0:02:54.8]}
8... Bxf3 {[%clk 0:02:58]} 9. Bxf3 {[%clk 0:02:54.6]} 9... Be7 {[%clk
0:02:57.8]} 10. Nc3 {[%clk 0:02:54.7]} 10... O-O {[%clk 0:02:57.6]} 11. e4
{[%clk 0:02:52.1]} 11... d4 {[%clk 0:02:55.9]} 12. Ne2 {[%clk 0:02:51.9]} 12...
e5 {[%clk 0:02:54.3]} 13. Bg2 {[%clk 0:02:51.7]} 13... Rc8 {[%clk 0:02:52.4]}
14. f4 {[%clk 0:02:49.5]} 14... exf4 {[%clk 0:02:52.3]} 15. gxf4 {[%clk
0:02:46.5]} 15... Qb6 {[%clk 0:02:45.8]} 16. Ng3 {[%clk 0:02:43.9]} 16... Nc5
{[%clk 0:02:33.3]} 17. e5 {[%clk 0:02:43.2]} 17... Nfd7 {[%clk 0:02:33]} 18. Nf5
{[%clk 0:02:41]} 18... Rfe8 {[%clk 0:02:32.5]} 19. Qg4 {[%clk 0:02:40]} 19...
Bf8 {[%clk 0:02:31.7]} 20. Rf3 {[%clk 0:02:25.5]} 20... Qg6 {[%clk 0:02:25.4]}
21. Bd2 {[%clk 0:02:24]} 21... Qxg4 {[%clk 0:02:20.6]} 22. hxg4 {[%clk
0:02:24.9]} 22... Ne6 {[%clk 0:02:17.9]} 23. Rf2 {[%clk 0:02:19.7]} 23... g6
{[%clk 0:02:16.4]} 24. Ng3 {[%clk 0:02:14.2]} 24... Nec5 {[%clk 0:02:12.7]} 25.
Bf1 {[%clk 0:02:10.2]} 25... Nb6 {[%clk 0:02:10]} 26. Re1 {[%clk 0:02:02.7]}
26... Nca4 {[%clk 0:01:46.1]} 27. Ne4 {[%clk 0:01:55.9]} 27... Be7 {[%clk
0:01:42.9]} 28. f5 {[%clk 0:01:53.8]} 28... Nxb2 {[%clk 0:01:40.3]} 29. e6
{[%clk 0:01:44.7]} 29... fxe6 {[%clk 0:01:39]} 30. f6 {[%clk 0:01:44.1]} 30...
Kh8 {[%clk 0:01:15.7]} 31. fxe7 {[%clk 0:01:41.7]} 31... Rxe7 {[%clk 0:01:15.6]}
32. Bg5 {[%clk 0:01:41.5]} 32... Nxd3 {[%clk 0:01:14]} 33. Bxd3 {[%clk
0:01:39.5]} 33... Rec7 {[%clk 0:01:14]} 34. Ref1 {[%clk 0:01:37]} 34... Nd5
{[%clk 0:01:13.5]} 35. Bh6 {[%clk 0:01:33.7]} 35... Rg8 {[%clk 0:01:07.4]} 36.
Ng5 {[%clk 0:01:29.4]} 36... Ne3 {[%clk 0:01:04.2]} 37. Rf7 {[%clk 0:01:23.8]}
37... Rxf7 {[%clk 0:01:04.7]} 38. Nxf7# {[%clk 0:01:23.3]} 1-0

[Event "Early-Titled-Tuesday-Blitz-October-10-2023"]
[Site "Chess.com"]
[Date "2023.10.10"]
[Round "1"]
[White "Arash_Tahbaz"]
[Black "zverr1"]
[Result "1-0"]
[WhiteElo "2933"]
[BlackElo "2504"]
[TimeControl "180+1"]
[EndTime "8:05:19 PDT"]
[Termination "Arash_Tahbaz won by resignation"]

1. Nf3 {[%clk 0:03:00.9]} 1... Nf6 {[%clk 0:02:41.2]} 2. g3 {[%clk 0:03:01.1]}
2... g6 {[%clk 0:02:40.6]} 3. Bg2 {[%clk 0:03:02]} 3... Bg7 {[%clk 0:02:41.4]}
4. O-O {[%clk 0:03:02.6]} 4... O-O {[%clk 0:02:42.3]} 5. d3 {[%clk 0:03:03.2]}
5... d5 {[%clk 0:02:40.7]} 6. Nbd2 {[%clk 0:03:03.3]} 6... c6 {[%clk 0:02:40.7]}
7. e4 {[%clk 0:03:03.8]} 7... dxe4 {[%clk 0:02:41.6]} 8. dxe4 {[%clk 0:03:04.7]}
8... Bg4 {[%clk 0:02:40.6]} 9. h3 {[%clk 0:03:05.1]} 9... Bxf3 {[%clk
0:02:40.6]} 10. Qxf3 {[%clk 0:03:06]} 10... Nbd7 {[%clk 0:02:37.3]} 11. Qe2
{[%clk 0:03:06.3]} 11... a5 {[%clk 0:02:30.9]} 12. a4 {[%clk 0:03:06.2]} 12...
Qb6 {[%clk 0:02:23.2]} 13. e5 {[%clk 0:02:52.2]} 13... Nd5 {[%clk 0:02:17.2]}
14. e6 {[%clk 0:02:52.7]} 14... Ne5 {[%clk 0:02:14.9]} 15. exf7+ {[%clk
0:02:32.7]} 15... Rxf7 {[%clk 0:02:13.1]} 16. Ne4 {[%clk 0:02:32.9]} 16... h6
{[%clk 0:02:07.5]} 17. c4 {[%clk 0:02:21.1]} 17... Qa6 {[%clk 0:02:00.2]} 18. b3
{[%clk 0:01:41.5]} 18... Nxc4 {[%clk 0:01:42.6]} 19. bxc4 {[%clk 0:01:41.3]}
19... Bxa1 {[%clk 0:01:42.6]} 20. Qa2 {[%clk 0:01:41.8]} 20... Nb4 {[%clk
0:01:23.2]} 21. Qxa1 {[%clk 0:01:41]} 21... Qxc4 {[%clk 0:01:23.6]} 22. Bxh6
{[%clk 0:01:39.5]} 22... Rd8 {[%clk 0:01:17.3]} 23. Qe5 {[%clk 0:01:30.7]} 23...
Nd3 {[%clk 0:01:01.3]} 24. Qxa5 {[%clk 0:01:27.6]} 24... Rd4 {[%clk 0:00:51.2]}
25. Qa8+ {[%clk 0:01:14]} 25... Kh7 {[%clk 0:00:50.1]} 26. Ng5+ {[%clk
0:01:14.6]} 26... Kxh6 {[%clk 0:00:50.2]} 27. Nxf7+ {[%clk 0:01:15.2]} 27...
Qxf7 {[%clk 0:00:49.4]} 28. Qh8+ {[%clk 0:01:15.8]} 28... Kg5 {[%clk 0:00:47.3]}
29. Qxd4 {[%clk 0:01:16.3]} 1-0

[Event "Early-Titled-Tuesday-Blitz-October-10-2023"]
[Site "Chess.com"]
[Date "2023.10.10"]
[Round "1"]
[White "j2806"]
[Black "ArmanGhevondyanchess"]
[Result "0-1"]
[WhiteElo "2149"]
[BlackElo "2557"]
[TimeControl "180+1"]
[EndTime "8:05:21 PDT"]
[Termination "ArmanGhevondyanchess won by resignation"]

1. e4 {[%clk 0:03:00.9]} 1... c5 {[%clk 0:03:00]} 2. Nf3 {[%clk 0:02:57.6]} 2...
Nc6 {[%clk 0:03:00.2]} 3. d4 {[%clk 0:02:52.6]} 3... cxd4 {[%clk 0:03:00.2]} 4.
Nxd4 {[%clk 0:02:53.2]} 4... g6 {[%clk 0:03:00.7]} 5. Be3 {[%clk 0:02:52.3]}
5... Bg7 {[%clk 0:03:00.9]} 6. Nc3 {[%clk 0:02:52.6]} 6... Nf6 {[%clk
0:02:59.9]} 7. Qd2 {[%clk 0:02:49.1]} 7... O-O {[%clk 0:03:00]} 8. O-O-O {[%clk
0:02:48.1]} 8... d5 {[%clk 0:02:57.6]} 9. Nxc6 {[%clk 0:02:31.4]} 9... bxc6
{[%clk 0:02:57.4]} 10. Bh6 {[%clk 0:02:13.2]} 10... Bxh6 {[%clk 0:02:32.5]} 11.
Qxh6 {[%clk 0:02:11.1]} 11... Rb8 {[%clk 0:02:31.2]} 12. Qe3 {[%clk 0:01:45.9]}
12... Qa5 {[%clk 0:02:21]} 13. f3 {[%clk 0:01:38.2]} 13... Be6 {[%clk
0:02:09.4]} 14. e5 {[%clk 0:01:35.7]} 14... Nd7 {[%clk 0:02:07.5]} 15. Rd4
{[%clk 0:01:12.5]} 15... Rb4 {[%clk 0:01:45.4]} 16. Rxb4 {[%clk 0:00:57.3]}
16... Qxb4 {[%clk 0:01:45]} 17. a3 {[%clk 0:00:57.9]} 17... Qb7 {[%clk
0:01:38.8]} 18. Bd3 {[%clk 0:00:41.3]} 18... Rb8 {[%clk 0:01:38.1]} 19. b3
{[%clk 0:00:41.2]} 19... c5 {[%clk 0:01:37.6]} 20. Na4 {[%clk 0:00:12.5]} 20...
c4 {[%clk 0:01:35.8]} 21. Be2 {[%clk 0:00:11.8]} 21... cxb3 {[%clk 0:01:34.8]}
22. Qxb3 {[%clk 0:00:11.2]} 22... Qc6 {[%clk 0:01:32.7]} 23. Qc3 {[%clk
0:00:05.7]} 23... Qxa4 {[%clk 0:01:31.7]} 0-1

[Event "Early-Titled-Tuesday-Blitz-October-10-2023"]
[Site "Chess.com"]
[Date "2023.10.10"]
[Round "1"]
[White "MagnusCarlsen"]
[Black "Zorbos"]
[Result "1-0"]
[WhiteElo "3278"]
[BlackElo "2524"]
[TimeControl "180+1"]
[EndTime "8:05:28 PDT"]
[Termination "MagnusCarlsen won by checkmate"]

1. e4 {[%clk 0:03:00.9]} 1... c5 {[%clk 0:02:59.7]} 2. Nf3 {[%clk 0:02:53.8]}
2... d6 {[%clk 0:02:59.6]} 3. Bb5+ {[%clk 0:02:52.4]} 3... Bd7 {[%clk
0:02:59.2]} 4. c4 {[%clk 0:02:51.1]} 4... Nf6 {[%clk 0:02:57.1]} 5. Nc3 {[%clk
0:02:50]} 5... a6 {[%clk 0:02:55.8]} 6. Bxd7+ {[%clk 0:02:49.6]} 6... Nbxd7
{[%clk 0:02:56.7]} 7. O-O {[%clk 0:02:48]} 7... g6 {[%clk 0:02:56.2]} 8. b3
{[%clk 0:02:44.6]} 8... Bg7 {[%clk 0:02:55.7]} 9. d4 {[%clk 0:02:44.6]} 9...
cxd4 {[%clk 0:02:55.5]} 10. Nxd4 {[%clk 0:02:45.5]} 10... O-O {[%clk 0:02:55.4]}
11. Bb2 {[%clk 0:02:43.8]} 11... Ne5 {[%clk 0:02:33.5]} 12. Qe2 {[%clk 0:02:43]}
12... Nc6 {[%clk 0:02:32.1]} 13. Nf3 {[%clk 0:02:42]} 13... Rb8 {[%clk 0:02:31]}
14. Rfd1 {[%clk 0:02:35.5]} 14... Qc7 {[%clk 0:02:20.8]} 15. Nd5 {[%clk
0:02:34.9]} 15... Nxd5 {[%clk 0:02:09.2]} 16. exd5 {[%clk 0:02:33.7]} 16... Ne5
{[%clk 0:01:55.8]} 17. Nxe5 {[%clk 0:02:31.3]} 17... Bxe5 {[%clk 0:01:35.4]} 18.
Bxe5 {[%clk 0:02:29.7]} 18... dxe5 {[%clk 0:01:31.2]} 19. Rac1 {[%clk
0:02:30.6]} 19... b6 {[%clk 0:01:19.7]} 20. b4 {[%clk 0:02:29.9]} 20... Rbc8
{[%clk 0:01:02]} 21. c5 {[%clk 0:02:24.7]} 21... bxc5 {[%clk 0:01:01.2]} 22.
bxc5 {[%clk 0:02:23.7]} 22... Qa5 {[%clk 0:00:59.1]} 23. c6 {[%clk 0:02:22.8]}
23... f6 {[%clk 0:00:54.9]} 24. h4 {[%clk 0:02:19.8]} 24... Rfd8 {[%clk
0:00:49.7]} 25. Qg4 {[%clk 0:02:15.4]} 25... f5 {[%clk 0:00:47]} 26. Qg5 {[%clk
0:02:12.2]} 26... Qc7 {[%clk 0:00:44.1]} 27. h5 {[%clk 0:02:11.8]} 27... Qd6
{[%clk 0:00:44]} 28. Rb1 {[%clk 0:02:10.5]} 28... Rc7 {[%clk 0:00:43.4]} 29. Rb7
{[%clk 0:02:07.1]} 29... Rxb7 {[%clk 0:00:39.7]} 30. cxb7 {[%clk 0:02:06.9]}
30... Rb8 {[%clk 0:00:39]} 31. hxg6 {[%clk 0:02:00.2]} 31... hxg6 {[%clk
0:00:38.3]} 32. Rc1 {[%clk 0:02:00.2]} 32... Rxb7 {[%clk 0:00:29.9]} 33. Rc6
{[%clk 0:01:57.2]} 33... Rb1+ {[%clk 0:00:17.5]} 34. Kh2 {[%clk 0:01:56.3]}
34... Qxd5 {[%clk 0:00:15]} 35. Qxg6+ {[%clk 0:01:55.4]} 35... Kf8 {[%clk
0:00:14.3]} 36. Rc8+ {[%clk 0:01:56.3]} 36... Qd8 {[%clk 0:00:12.6]} 37. Rxd8#
{[%clk 0:01:57.2]} 1-0